bitfinex-derivatives/quotes_SOLF0:USTF0_20260302
["timestamp","ask_amount","ask_price","bid_price","bid_amount"]
[1772494860363,26.33267968,86.529,86.431,24.17666716]
[1772494860554,26.33267968,86.529,86.41,9.17085847]
[1772494860555,26.33267968,86.529,86.451,24.17666716]
[1772494860755,9.17085847,86.53,86.454,24.17666716]
[1772494860756,26.33267968,86.527,86.454,24.17666716]
[1772494860956,26.33267968,86.549,86.454,24.17666716]
[1772494861658,26.33267968,86.549,86.471,24.17666716]
[1772494862259,26.33267968,86.509,86.401,24.17666716]
[1772494862561,26.33267968,86.489,86.401,24.17666716]
[1772494862861,26.33267968,86.484,86.41,24.17666716]
[1772494863363,26.33267968,86.482,86.411,24.17666716]
[1772494863964,26.33267968,86.478,86.411,24.17666716]
[1772494864660,26.33267968,86.478,86.412,24.17666716]
[1772494865259,9.17085847,86.49,86.412,24.17666716]
[1772494865564,26.33267968,86.497,86.43,24.17666716]
[1772494865959,26.33267968,86.495,86.43,24.17666716]
[1772494867965,26.33267968,86.495,86.431,10.412]
[1772494868560,9.17085847,86.51,86.42,9.17085847]
[1772494868561,9.17085847,86.51,86.442,24.17666716]
[1772494868756,26.33267968,86.509,86.442,24.17666716]
[1772494870463,26.33267968,86.508,86.442,24.17666716]
[1772494871261,26.33267968,86.506,86.442,24.17666716]
[1772494872367,26.33267968,86.506,86.445,24.17666716]
[1772494872957,26.33267968,86.506,86.44,9.17085847]
[1772494872958,26.33267968,86.529,86.451,24.17666716]
[1772494873664,26.33267968,86.529,86.462,24.17666716]
[1772494874274,26.33267968,86.529,86.466,24.17666716]
[1772494875270,26.33267968,86.529,86.467,24.17666716]
[1772494876063,10.398,86.545,86.467,24.17666716]
[1772494876261,26.33267968,86.544,86.469,24.17666716]
[1772494876971,26.33267968,86.544,86.473,24.17666716]
[1772494877872,22.93027459,86.561,86.481,22.91794831]
[1772494878071,22.93027459,86.509,86.41,9.17085847]
[1772494878269,22.93027459,86.509,86.411,22.91794831]
[1772494878465,22.93027459,86.489,86.411,22.91794831]
[1772494879075,22.93027459,86.489,86.339,162.146]
[1772494879076,22.93027459,86.486,86.391,22.91794831]
[1772494879780,10.406,86.478,86.41,22.91794831]
[1772494880584,22.93027459,86.477,86.41,22.91794831]
[1772494881276,22.93027459,86.477,86.412,22.91794831]
[1772494881782,22.93027459,86.477,86.413,10.414]
[1772494882879,22.93027459,86.474,86.412,22.91794831]
[1772494883681,22.93027459,86.474,86.403,10.415]
[1772494885181,10.407,86.472,86.403,10.415]
[1772494885378,22.93027459,86.471,86.403,10.415]
[1772494885979,22.93027459,86.471,86.39,9.17085847]
[1772494885980,22.93027459,86.471,86.413,22.91794831]
[1772494886879,22.93027459,86.471,86.415,10.414]
[1772494888276,22.93027459,86.471,86.415,22.91794831]
[1772494889182,22.93027459,86.471,86.415,33.33194831]
[1772494890785,22.93027459,86.471,86.42,22.91794831]
[1772494891579,22.93027459,86.503,86.432,10.412]
[1772494891783,22.93027459,86.501,86.432,10.412]
[1772494893287,22.93027459,86.501,86.435,22.91794831]
[1772494895280,22.93027459,86.491,86.435,22.91794831]
[1772494896581,22.93027459,86.491,86.436,10.411]
[1772494896781,22.93027459,86.491,86.435,22.91794831]
[1772494897381,22.93027459,86.491,86.343,11.57]
[1772494897382,323.726,86.49,86.35,22.91794831]
[1772494897694,19.33854127,86.489,86.381,22.91794831]
[1772494897991,19.33541524,86.499,86.381,22.91794831]
[1772494898192,10.406,86.478,86.389,22.91794831]
[1772494899290,10.406,86.478,86.396,22.91794831]
[1772494899792,22.93027459,86.477,86.396,22.91794831]
[1772494900092,9.17085847,86.51,86.402,22.91794831]
[1772494900386,22.93027459,86.509,86.402,22.91794831]
[1772494900587,22.93027459,86.48,86.402,22.91794831]
[1772494901484,22.93027459,86.48,86.404,22.91794831]
[1772494901987,9.17085847,86.51,86.404,22.91794831]
[1772494901988,22.93027459,86.499,86.404,22.91794831]
[1772494902691,33.33427459,86.498,86.423,22.91794831]
[1772494903087,22.93027459,86.497,86.423,22.91794831]
[1772494903593,22.93027459,86.497,86.425,22.91794831]
[1772494905191,22.93027459,86.497,86.427,22.91794831]
[1772494907194,22.93027459,86.497,86.429,22.91794831]
[1772494908893,20.6447669,86.495,86.391,20.31303467]
[1772494909088,20.6447669,86.494,86.391,20.31303467]
[1772494909288,19.34016765,86.507,86.405,10.415]
[1772494909495,20.6447669,86.472,86.391,20.31303467]
[1772494910590,20.6447669,86.472,86.396,20.31303467]
[1772494911195,10.407,86.47,86.402,10.416]
[1772494911399,31.0517669,86.47,86.403,20.31303467]
[1772494912194,20.6447669,86.465,86.403,20.31303467]
[1772494913199,10.408,86.462,86.403,20.31303467]
[1772494914792,20.6447669,86.419,86.327,20.31303467]
[1772494914994,20.6447669,86.399,86.327,20.31303467]
[1772494915800,20.6447669,86.39,86.308,20.31303467]
[1772494917395,20.6447669,86.419,86.321,20.31303467]
[1772494917801,10.416,86.402,86.322,20.31303467]
[1772494918596,10.416,86.396,86.326,10.425]
[1772494918798,10.416,86.396,86.327,20.31303467]
[1772494919703,20.6447669,86.401,86.33,20.31303467]
[1772494921305,20.6447669,86.401,86.332,20.31303467]
[1772494921503,10.414,86.416,86.332,20.31303467]
[1772494921702,20.6447669,86.421,86.34,9.19315029]
[1772494922005,20.6447669,86.421,86.355,20.31303467]
[1772494922797,20.6447669,86.429,86.3,34.53]
[1772494922997,20.6447669,86.409,86.321,20.31303467]
[1772494924305,20.6447669,86.407,86.334,20.31303467]
[1772494925914,10.417,86.393,86.334,20.31303467]
[1772494927307,5.20901431,86.398,86.272,20.31303467]
[1772494927507,9.19315029,86.38,86.281,20.31303467]
[1772494927706,20.4076283,86.399,86.301,20.31303467]
[1772494929315,10.419,86.375,86.306,30.74003467]
[1772494929513,10.419,86.375,86.307,20.31303467]
[1772494929710,19.64098309,86.374,86.307,20.31303467]
[1772494929908,19.64098309,86.372,86.307,20.31303467]
[1772494931115,18.96937671,86.371,86.307,20.31303467]
[1772494932305,18.96937671,86.371,86.3,9.19315029]
[1772494932306,18.96937671,86.371,86.309,20.31303467]
[1772494932510,18.5402103,86.39,86.309,20.31303467]
[1772494932708,18.5402103,86.39,86.31,20.31303467]
[1772494933106,18.5402103,86.39,86.328,10.424]
[1772494934014,28.10951717,86.389,86.329,20.31303467]
[1772494934213,17.69251717,86.389,86.329,20.31303467]
[1772494936121,17.74117919,86.408,86.347,20.31303467]
[1772494936621,17.74117919,86.408,86.298,20.857]
[1772494936622,17.43936633,86.449,86.361,20.31303467]
[1772494937218,10.412,86.436,86.366,16.38256077]
[1772494938221,10.412,86.436,86.369,15.96018237]
[1772494938521,9.19315029,86.45,86.369,15.96018237]
[1772494938522,16.22355498,86.446,86.369,15.96018237]
[1772494940217,15.48953055,86.444,86.372,10.419]
[1772494942124,10.411,86.44,86.372,10.419]
[1772494942324,14.74986781,86.439,86.372,10.419]
[1772494943225,14.74986781,86.439,86.376,15.96018237]
[1772494943426,9.19315029,86.48,86.381,15.96018237]
[1772494943725,14.45408229,86.479,86.401,15.96018237]
[1772494944119,14.45408229,86.479,86.417,10.414]
[1772494945221,9.19315029,86.52,86.443,15.96018237]
[1772494946626,9.19315029,86.52,86.447,10.41]
[1772494946827,9.19315029,86.52,86.44,9.19315029]
[1772494946828,9.19315029,86.54,86.448,15.96018237]
[1772494947024,9.19315029,86.54,86.461,15.96018237]
[1772494947529,9.19315029,86.56,86.461,15.96018237]
[1772494948234,10.398,86.548,86.464,10.408]
[1772494948532,9.19315029,86.54,86.465,15.96018237]
[1772494949532,10.398,86.549,86.467,15.96018237]
[1772494950335,9.19315029,86.52,86.438,15.96018237]
[1772494951436,10.402,86.518,86.438,15.96018237]
[1772494952638,10.403,86.509,86.442,10.411]
[1772494953336,10.403,86.509,86.443,15.97967011]
[1772494955136,9.19315029,86.52,86.443,15.97967011]
[1772494955137,10.404,86.499,86.443,15.97967011]
[1772494959139,10.406,86.486,86.421,15.96018237]
[1772494959641,9.19315029,86.5,86.421,15.96018237]
[1772494960244,10.404,86.497,86.422,15.9671495]
[1772494960441,9.19315029,86.5,86.422,15.9671495]
[1772494960938,34.76,86.547,86.422,15.9671495]
[1772494961140,161.728,86.563,86.422,15.9671495]
[1772494961141,9.19315029,86.52,86.422,15.9671495]
[1772494961340,10.403,86.507,86.439,15.97599173]
[1772494961540,9.19315029,86.52,86.439,15.97599173]
[1772494962038,9.19315029,86.52,86.418,2.01265427]
[1772494962039,10.402,86.517,86.453,15.96101704]
[1772494962241,9.19315029,86.54,86.453,15.96101704]
[1772494962834,9.19315029,86.54,86.455,15.96984933]
[1772494963035,9.19315029,86.5,86.439,15.96984933]
[1772494963842,10.403,86.507,86.439,15.96984933]
[1772494965240,10.403,86.507,86.442,16.01819344]
[1772494967548,9.19315029,86.52,86.447,16.02570169]
[1772494967847,10.401,86.525,86.447,16.02570169]
[1772494968047,10.401,86.525,86.461,16.02570169]
[1772494969541,10.402,86.515,86.461,16.02570169]
[1772494969742,9.19315029,86.54,86.461,16.02570169]
[1772494970644,10.401,86.524,86.462,16.05865207]
[1772494971050,9.19315029,86.56,86.462,16.05865207]
[1772494971551,10.399,86.542,86.481,16.04989778]
[1772494972050,9.19315029,86.57,86.481,16.04989778]
[1772494972245,10.399,86.544,86.481,16.04989778]
[1772494972442,9.19315029,86.57,86.481,16.04989778]
[1772494973353,10.4,86.536,86.481,16.04989778]
[1772494973648,9.19315029,86.55,86.481,16.04989778]
[1772494973852,10.401,86.528,86.464,16.03250853]
[1772494975146,10.401,86.52,86.464,16.03250853]
[1772494976750,10.402,86.512,86.464,16.03250853]
[1772494977150,9.16401831,86.54,86.464,16.03250853]
[1772494977356,9.16401831,86.56,86.476,16.28361009]
[1772494978048,9.16401831,86.56,86.478,16.28719206]
[1772494979251,10.399,86.541,86.487,16.29301083]
[1772494980554,9.16401831,86.58,86.491,16.27318518]
[1772494982148,20.788,86.586,86.491,16.27318518]
[1772494982149,9.16401831,86.56,86.491,16.27318518]
[1772494983250,10.399,86.539,86.491,16.27318518]
[1772494983449,10.399,86.539,86.46,9.16401831]
[1772494983450,9.16401831,86.56,86.461,16.21060162]
[1772494983650,9.16401831,86.54,86.461,16.21060162]
[1772494983850,9.16401831,86.52,86.446,16.15558289]
[1772494985258,10.404,86.501,86.446,16.15558289]
[1772494986758,10.403,86.51,86.446,16.15558289]
[1772494986954,9.16401831,86.52,86.446,16.15558289]
[1772494987355,9.16401831,86.52,86.397,20.833]
[1772494987356,9.16401831,86.48,86.416,16.16650155]
[1772494987557,9.16401831,86.46,86.381,16.16650155]
[1772494989264,10.412,86.436,86.381,16.16650155]
[1772494992160,9.16401831,86.46,86.381,16.16650155]
[1772494993068,10.409,86.458,86.381,16.16650155]
[1772494993870,10.41,86.448,86.381,16.16650155]
[1772495003376,10.411,86.44,86.381,16.16650155]
[1772495003582,9.16401831,86.42,86.347,16.33072253]
[1772495005183,10.414,86.419,86.348,16.35308174]
[1772495006085,10.412,86.429,86.35,16.32599097]
[1772495006480,10.412,86.429,86.355,16.33083701]
[1772495007574,10.412,86.429,86.358,10.421]
[1772495007775,10.412,86.429,86.359,16.34009676]
[1772495008182,10.411,86.439,86.362,16.34009676]
[1772495008986,10.411,86.439,86.364,16.34480258]
[1772495009384,10.41,86.45,86.364,16.34480258]
[1772495009583,10.41,86.45,86.35,9.16401831]
[1772495009584,10.41,86.45,86.371,16.51325034]
[1772495009786,9.16401831,86.46,86.371,16.51325034]
[1772495010379,9.16401831,86.48,86.391,16.51325034]
[1772495011489,10.406,86.479,86.411,16.5167764]
[1772495011991,10.406,86.479,86.413,16.54348049]
[1772495013995,10.408,86.464,86.413,16.54348049]
[1772495014285,9.16401831,86.48,86.413,16.54348049]
[1772495015891,10.407,86.471,86.413,16.54348049]
[1772495016085,9.16401831,86.48,86.413,16.54348049]
[1772495018292,10.408,86.468,86.413,16.54348049]
[1772495018889,0.88360253,86.439,86.34,9.16401831]
[1772495019195,0.88360253,86.439,86.348,5.2056562]
[1772495019397,10.412,86.431,86.348,5.2056562]
[1772495019596,10.412,86.431,86.34,9.16401831]
[1772495020797,10.412,86.431,86.341,9.30982649]
[1772495021194,10.412,86.431,86.36,9.30982649]
[1772495021399,0.48742044,86.458,86.381,9.30982649]
[1772495021600,0.54418239,86.48,86.401,9.30982649]
[1772495023297,10.407,86.478,86.409,9.30982649]
[1772495024096,10.407,86.472,86.409,9.30982649]
[1772495024498,0.26210564,86.477,86.409,9.30982649]
[1772495024999,0.26210564,86.477,86.419,9.30982649]
[1772495025301,9.16401831,86.49,86.419,9.30982649]
[1772495025598,0.32104731,86.56,86.481,9.30982649]
[1772495025789,0.32355682,86.577,86.501,9.30982649]
[1772495027401,0.32355682,86.577,86.504,8.33677048]
[1772495027902,10.395,86.574,86.504,8.33677048]
[1772495029304,0.33019036,86.571,86.504,8.33677048]
[1772495030196,10.395,86.57,86.504,8.33677048]
[1772495030397,0.54915024,86.609,86.504,8.33677048]
[1772495030905,0.55057915,86.594,86.506,8.29721961]
[1772495031499,0.55057915,86.594,86.46,9.16401831]
[1772495031500,9.16401831,86.67,86.571,8.77763161]
[1772495031702,9.16401831,86.65,86.551,8.77763161]
[1772495031900,11.17354044,86.65,86.551,8.77763161]
[1772495033199,10.388,86.629,86.551,8.77763161]
[1772495033400,9.16401831,86.63,86.551,8.77763161]
[1772495035708,10.388,86.628,86.551,8.77763161]
[1772495037804,10.39,86.616,86.551,8.77763161]
[1772495043606,9.14433357,86.62,86.534,9.02597938]
[1772495044910,9.14433357,86.6,86.534,9.02597938]
[1772495046314,10.394,86.585,86.534,9.02597938]
[1772495046613,9.14433357,86.6,86.515,9.04403967]
[1772495047212,10.395,86.575,86.515,9.04403967]
[1772495051708,10.396,86.566,86.515,9.04403967]
[1772495051915,9.14433357,86.58,86.515,9.04403967]
[1772495052816,10.395,86.579,86.515,9.04403967]
[1772495053519,161.809,86.528,86.34,31.63619476]
[1772495053816,161.809,86.528,86.33,162.178]
[1772495053817,485.271,86.556,86.363,31.62679452]
[1772495053818,9.14433357,86.44,86.363,31.62679452]
[1772495054313,9.14433357,86.43,86.363,31.62679452]
[1772495055014,10.417,86.401,86.32,9.14433357]
[1772495055212,10.417,86.401,86.327,2.01457091]
[1772495055718,10.419,86.386,86.3,9.14433357]
[1772495056014,9.14433357,86.41,86.307,2.01522421]
[1772495056211,161.916,86.471,86.307,2.01522421]
[1772495056212,9.14433357,86.43,86.307,2.01522421]
[1772495056518,9.14433357,86.43,86.34,9.14433357]
[1772495056725,9.14433357,86.48,86.314,162.208]
[1772495056918,9.14433357,86.49,86.391,22.40533405]
[1772495057423,10.407,86.48,86.411,22.40533405]
[1772495057614,9.14433357,86.51,86.411,22.40533405]
[1772495058015,10.407,86.481,86.411,22.40533405]
[1772495058218,9.14433357,86.51,86.411,22.40533405]
[1772495058420,161.797,86.534,86.411,22.40533405]
[1772495058619,9.14433357,86.51,86.411,22.40533405]
[1772495058920,9.14433357,86.49,86.411,22.40533405]
[1772495059518,10.409,86.466,86.392,22.35720064]
[1772495063521,10.411,86.453,86.392,22.35720064]
[1772495064528,161.92,86.468,86.308,22.26532473]
[1772495064827,9.14433357,86.45,86.341,22.26532473]
[1772495066230,9.14433357,86.47,86.361,22.2362988]
[1772495066426,34.76,86.469,86.361,22.2362988]
[1772495066829,10.414,86.426,86.361,22.2362988]
[1772495067430,9.14433357,86.45,86.361,22.2362988]
[1772495067431,10.415,86.414,86.361,22.2362988]
[1772495070334,10.417,86.402,86.343,22.23832556]
[1772495073331,10.415,86.413,86.343,22.23832556]
[1772495074234,34.76,86.429,86.343,22.23832556]
[1772495075235,9.14433357,86.43,86.343,22.23832556]
[1772495075529,34.76,86.429,86.343,22.23832556]
[1772495075936,9.14433357,86.43,86.343,22.23832556]
[1772495076632,34.76,86.429,86.345,22.17251166]
[1772495077929,9.14433357,86.43,86.345,22.17251166]
[1772495078434,34.76,86.449,86.351,22.16738098]
[1772495078635,10.413,86.43,86.356,22.17151027]
[1772495079538,10.414,86.421,86.356,22.17151027]
[1772495082939,9.14433357,86.46,86.37,9.14433357]
[1772495083145,34.76,86.469,86.391,22.06195642]
[1772495083341,9.14433357,86.49,86.391,22.06195642]
[1772495083538,10.409,86.469,86.4,22.06195642]
[1772495084242,10.409,86.469,86.402,22.05342322]
[1772495084643,34.76,86.509,86.411,22.05542028]
[1772495084848,34.76,86.509,86.41,9.14433357]
[1772495084849,34.76,86.509,86.428,22.05542028]
[1772495085051,34.76,86.509,86.431,22.05542028]
[1772495085247,10.406,86.489,86.431,22.05542028]
[1772495085543,34.76,86.509,86.431,22.05542028]
[1772495086048,34.76,86.529,86.434,22.19330572]
[1772495086250,9.14433357,86.54,86.434,22.19330572]
[1772495086750,9.14433357,86.52,86.434,22.19330572]
[1772495087343,9.14433357,86.52,86.436,22.19699613]
[1772495088149,10.405,86.497,86.436,22.19699613]
[1772495088742,10.404,86.507,86.436,22.19699613]
[1772495092352,10.404,86.507,86.438,22.08977505]
[1772495093155,10.405,86.498,86.438,22.08977505]
[1772495093549,6.41862674,86.52,86.438,22.08977505]
[1772495095255,10.404,86.508,86.438,22.08977505]
[1772495096459,34.76,86.507,86.438,22.08977505]
[1772495097055,10.407,86.487,86.438,22.08977505]
[1772495099257,34.76,86.519,86.438,22.08977505]
[1772495099461,34.76,86.529,86.438,22.08977505]
[1772495099755,34.76,86.527,86.438,22.08977505]
[1772495099963,19.54937382,86.528,86.438,22.08977505]
[1772495099964,34.76,86.525,86.438,22.08977505]
[1772495100164,34.76,86.523,86.44,22.47651864]
[1772495100356,34.76,86.529,86.44,22.47651864]
[1772495100556,9.19219362,86.528,86.44,22.47651864]
[1772495100862,34.76,86.527,86.442,22.48174308]
[1772495101062,34.76,86.509,86.442,22.48174308]
[1772495101364,9.1910919,86.508,86.442,22.48174308]
[1772495101660,10.406,86.492,86.442,22.48174308]
[1772495102060,34.76,86.509,86.442,22.48174308]
[1772495102863,10.406,86.494,86.442,22.48174308]
[1772495103458,34.76,86.507,86.426,22.42600317]
[1772495103657,34.76,86.507,86.4,6.41921417]
[1772495103658,34.76,86.489,86.401,22.42600317]
[1772495104458,10.409,86.465,86.403,22.22318122]
[1772495105155,6.41921417,86.49,86.406,22.2258626]
[1772495105360,34.76,86.499,86.406,22.2258626]
[1772495105961,10.407,86.484,86.423,22.1661447]
[1772495106159,2.62683436,86.542,86.451,16.9626447]
[1772495106352,2.62683436,86.542,86.481,10.407]
[1772495106558,2.62683436,86.542,86.481,14.32392274]
[1772495107958,10.4,86.538,86.481,14.32392274]
[1772495108459,14.65538059,86.537,86.481,14.32392274]
[1772495109262,10.401,86.536,86.481,14.32392274]
[1772495110362,10.399,86.546,86.481,14.32392274]
[1772495110966,10.4,86.54,86.481,14.32392274]
[1772495111363,14.65538059,86.545,86.481,24.73092274]
[1772495111568,14.65538059,86.545,86.46,6.41921417]
[1772495111569,14.65538059,86.545,86.482,14.32392274]
[1772495112268,14.65538059,86.545,86.484,14.32392274]
[1772495113170,14.65538059,86.534,86.468,14.32392274]
[1772495114370,10.399,86.546,86.471,14.32392274]
[1772495114771,14.65538059,86.545,86.471,14.32392274]
[1772495115773,25.05638059,86.529,86.471,14.32392274]
[1772495115965,14.65538059,86.528,86.471,14.32392274]
[1772495116565,10.4,86.538,86.471,14.32392274]
[1772495116975,25.05538059,86.538,86.471,14.32392274]
[1772495117170,19.6839277,86.537,86.471,14.32392274]
[1772495117370,18.3294534,86.547,86.474,19.74857845]
[1772495118474,10.401,86.535,86.474,19.74857845]
[1772495118676,18.3294534,86.534,86.474,19.74857845]
[1772495119577,18.3294534,86.534,86.475,20.03702503]
[1772495120279,28.7304534,86.534,86.475,20.03702503]
[1772495120479,18.3294534,86.533,86.475,20.03702503]
[1772495121579,18.3294534,86.533,86.421,20.829]
[1772495121580,18.3294534,86.521,86.454,20.03702503]
[1772495121978,18.3294534,86.49,86.438,20.03702503]
[1772495122173,18.3294534,86.49,86.422,20.03702503]
[1772495122373,18.3294534,86.49,86.393,20.03702503]
[1772495122574,18.3294534,86.449,86.35,6.41921417]
[1772495122881,18.3294534,86.449,86.351,20.03702503]
[1772495123283,18.3294534,86.449,86.378,20.03702503]
[1772495124171,18.3294534,86.436,86.378,20.03702503]
[1772495124376,18.3294534,86.436,86.358,20.03702503]
[1772495125380,18.3294534,86.435,86.361,20.03702503]
[1772495126178,10.413,86.434,86.362,10.421]
[1772495126378,10.413,86.434,86.363,20.03702503]
[1772495127184,10.412,86.445,86.377,20.03702503]
[1772495127388,18.3294534,86.457,86.377,20.03702503]
[1772495127788,13.61154506,86.509,86.34,6.41921417]
[1772495127789,18.3294534,86.424,86.354,20.03702503]
[1772495128381,18.3294534,86.434,86.364,20.03702503]
[1772495129288,18.3294534,86.434,86.374,20.03702503]
[1772495130390,6.41921417,86.45,86.36,6.41921417]
[1772495130391,6.41921417,86.45,86.376,20.03702503]
[1772495130592,18.3294534,86.452,86.381,20.03702503]
[1772495130987,18.3294534,86.452,86.383,20.03702503]
[1772495131990,10.41,86.455,86.383,20.03702503]
[1772495132195,18.3294534,86.467,86.396,20.03702503]
[1772495133284,18.3294534,86.467,86.399,20.03702503]
[1772495133590,18.3294534,86.459,86.38,20.03702503]
[1772495133985,18.3294534,86.446,86.38,20.03702503]
[1772495134592,18.3294534,86.466,86.382,20.03702503]
[1772495136296,10.408,86.474,86.399,20.03702503]
[1772495136493,18.3294534,86.483,86.401,20.03702503]
[1772495137199,18.3294534,86.479,86.405,20.03702503]
[1772495138195,18.3294534,86.477,86.407,20.03702503]
[1772495139303,10.408,86.472,86.407,20.03702503]
[1772495139602,10.408,86.472,86.406,10.416]
[1772495139603,18.3294534,86.477,86.409,20.03702503]
[1772495140500,18.3294534,86.477,86.413,20.03702503]
[1772495141405,18.3294534,86.477,86.419,20.03702503]
[1772495141603,18.3294534,86.475,86.419,20.03702503]
[1772495143199,18.3294534,86.475,86.421,20.03702503]
[1772495144596,18.3294534,86.511,86.423,20.03702503]
[1772495144800,18.3294534,86.528,86.441,20.03702503]
[1772495144996,18.3294534,86.528,86.454,20.03702503]
[1772495146201,18.3294534,86.528,86.459,10.41]
[1772495146401,18.3294534,86.528,86.46,20.03702503]
[1772495147206,18.3294534,86.528,86.462,20.03702503]
[1772495148008,22.28507644,86.526,86.462,20.03702503]
[1772495149309,22.28507644,86.526,86.462,30.44602503]
[1772495149605,22.28507644,86.526,86.463,21.52666159]
[1772495150201,22.28507644,86.549,86.466,21.52666159]
[1772495150810,10.4,86.541,86.475,21.52666159]
[1772495151211,32.68507644,86.541,86.475,21.52666159]
[1772495151506,22.28507644,86.54,86.475,21.52666159]
[1772495152211,22.28507644,86.54,86.478,21.52666159]
[1772495152416,22.28507644,86.529,86.478,21.52666159]
[1772495153320,10.4,86.54,86.478,21.52666159]
[1772495153513,32.68507644,86.54,86.478,21.52666159]
[1772495154215,22.28507644,86.537,86.478,21.52666159]
[1772495154407,22.28507644,86.537,86.48,21.52666159]
[1772495156014,22.28507644,86.555,86.492,21.52666159]
[1772495156612,22.28507644,86.553,86.492,21.52666159]
[1772495158320,10.399,86.547,86.492,21.52666159]
[1772495158514,22.28507644,86.546,86.492,21.52666159]
[1772495160414,22.28507644,86.544,86.474,21.52666159]
[1772495161515,22.28507644,86.544,86.476,21.52666159]
[1772495162319,22.28507644,86.543,86.479,21.52666159]
[1772495162716,22.28507644,86.539,86.451,21.52666159]
[1772495162914,10.402,86.524,86.459,10.41]
[1772495163110,22.28507644,86.523,86.46,21.52666159]
[1772495163519,28.69618581,86.54,86.46,21.52666159]
[1772495163714,22.28507644,86.54,86.46,21.52666159]
[1772495164319,22.28507644,86.54,86.478,21.52666159]
[1772495164522,22.28507644,86.569,86.478,21.52666159]
[1772495165322,22.28507644,86.569,86.494,21.52666159]
[1772495166122,10.397,86.566,86.505,21.52666159]
[1772495166425,22.28507644,86.565,86.505,21.52666159]
[1772495167122,10.397,86.564,86.506,10.404]
[1772495167320,22.28507644,86.565,86.507,21.52666159]
[1772495168224,22.28507644,86.565,86.509,21.52666159]
[1772495169421,10.396,86.573,86.512,21.52666159]
[1772495169617,22.28507644,86.572,86.512,21.52666159]
[1772495170020,22.28507644,86.57,86.512,21.52666159]
[1772495170820,22.28507644,86.561,86.497,21.52666159]
[1772495171816,22.28507644,86.556,86.499,21.52666159]
[1772495172322,10.397,86.564,86.503,21.52666159]
[1772495172722,22.28507644,86.572,86.503,21.52666159]
[1772495172921,22.28507644,86.587,86.521,21.52666159]
[1772495174321,22.28507644,86.577,86.521,21.52666159]
[1772495178319,22.84664624,86.574,86.521,21.52666159]
[1772495178822,10.395,86.584,86.521,21.52666159]
[1772495179027,22.84664624,86.59,86.521,21.52666159]
[1772495179226,22.84664624,86.59,86.532,24.71148244]
[1772495179725,22.84664624,86.59,86.471,161.914]
[1772495179726,22.84664624,86.59,86.507,24.71148244]
[1772495180122,10.09903086,86.599,86.507,24.71148244]
[1772495180123,10.397,86.565,86.507,24.71148244]
[1772495180326,22.84664624,86.568,86.507,24.71148244]
[1772495181327,22.84664624,86.568,86.509,24.71148244]
[1772495182219,22.84664624,86.566,86.509,24.71148244]
[1772495183626,22.84664624,86.566,86.511,24.71148244]
[1772495184231,22.84664624,86.584,86.514,24.71148244]
[1772495184725,22.84664624,86.621,86.555,24.71148244]
[1772495184925,22.84664624,86.619,86.555,24.71148244]
[1772495185123,22.84664624,86.617,86.555,24.71148244]
[1772495185422,22.84664624,86.615,86.555,24.71148244]
[1772495185628,22.84664624,86.613,86.555,24.71148244]
[1772495185823,22.84664624,86.611,86.555,24.71148244]
[1772495186127,22.84664624,86.61,86.555,24.71148244]
[1772495186325,22.84664624,86.637,86.555,24.71148244]
[1772495186520,22.84664624,86.635,86.555,24.71148244]
[1772495186826,22.84664624,86.633,86.555,24.71148244]
[1772495187021,22.84664624,86.631,86.555,24.71148244]
[1772495187220,22.84664624,86.614,86.555,24.71148244]
[1772495189820,22.84664624,86.612,86.539,24.71148244]
[1772495190030,22.84664624,86.61,86.539,24.71148244]
[1772495190325,22.84664624,86.61,86.54,6.41110937]
[1772495190529,22.84664624,86.61,86.541,24.71148244]
[1772495190828,22.84664624,86.61,86.549,24.71148244]
[1772495191430,22.84664624,86.61,86.554,24.71148244]
[1772495191831,22.84664624,86.625,86.554,24.71148244]
[1772495192032,22.84664624,86.625,86.568,24.71148244]
[1772495192424,22.84664624,86.625,86.58,2.38845109]
[1772495193537,22.84664624,86.625,86.59,2.38845109]
[1772495195538,22.84664624,86.644,86.59,2.38845109]
[1772495198632,10.388,86.64,86.59,2.38845109]
[1772495198833,22.84664624,86.639,86.59,2.38845109]
[1772495203443,22.84664624,86.637,86.59,2.38845109]
[1772495204144,22.84664624,86.635,86.59,2.38845109]
[1772495204337,22.84664624,86.635,86.585,24.71148244]
[1772495204843,22.84664624,86.635,86.59,2.38845109]
[1772495205244,22.84664624,86.635,86.6,2.38845109]
[1772495207543,22.84664624,86.635,86.59,2.38845109]
[1772495208153,10.387,86.645,86.524,196.574]